fUST/lending_fUST_20250901
["ID","MTS","AMOUNT","RATE_DAILY","PERIOD"]
[382561860,1756668638700,-427.57402788,0.0001655,2]
[382561861,1756668638710,-500.0,0.0001655,2]
[382561863,1756668638719,-500.0,0.0001655,2]
[382561865,1756668638728,-500.0,0.0001655,2]
[382561867,1756668638738,-500.0,0.0001655,2]
[382561869,1756668638747,-331.70606565,0.0001655,2]
[382561871,1756668638757,-500.0,0.0001655,2]
[382561873,1756668638766,-500.0,0.0001655,2]
[382561875,1756668638775,-500.0,0.0001655,2]
[382561877,1756668638784,-596.61529942,0.0001655,2]
[382561879,1756668638794,-500.0,0.0001655,2]
[382561881,1756668638803,-500.0,0.0001655,2]
[382561883,1756668638813,-480.26516667,0.0001655,2]
[382561885,1756668638822,-500.0,0.0001655,2]
[382561887,1756668638831,-500.0,0.0001655,2]
[382561889,1756668638840,-480.0,0.0001655,2]
[382561891,1756668638850,-707.4,0.00016551,2]
[382561893,1756668638859,-369.14919375,0.00016554,2]
[382561895,1756668638868,-1084.29,0.00016554,2]
[382561897,1756668638878,-480.0,0.00016554,2]
[382561899,1756668638887,-439.57964417,0.00016554,2]
[382561901,1756668638896,-480.0,0.00016554,2]
[382561903,1756668638909,-577.6,0.00016554,2]
[382561905,1756668638918,-480.0,0.00016554,2]
[382561907,1756668638927,-480.0,0.00016554,2]
[382561909,1756668638936,-496.4,0.00016554,2]
[382561911,1756668638945,-3000.44,0.00016554,2]
[382561913,1756668638955,-935.24,0.00016554,2]
[382561915,1756668638963,-920.55,0.00016554,2]
[382561917,1756668638973,-988.13,0.00016554,2]
[382561919,1756668638982,-990.62,0.00016554,2]
[382561921,1756668638992,-480.0,0.00016554,2]
[382561923,1756668639000,-480.0,0.00016554,2]
[382561925,1756668639011,-1196.1,0.00016554,2]
[382561927,1756668639020,-480.0,0.00016554,2]
[382561929,1756668639030,-1157.72,0.00016554,2]
[382561931,1756668639039,-966.73,0.00016554,2]
[382561933,1756668639048,-1308.91,0.00016554,2]
[382561935,1756668639057,-2179.04,0.00016554,2]
[382561937,1756668639067,-480.0,0.00016554,2]
[382561939,1756668639076,-640.63,0.00016554,2]
[382561941,1756668639085,-480.0,0.00016554,2]
[382561943,1756668639094,-480.0,0.00016554,2]
[382561945,1756668639103,-480.0,0.00016554,2]
[382561947,1756668639112,-1277.75,0.00016554,2]
[382561949,1756668639121,-1813.75,0.00016554,2]
[382561951,1756668639130,-629.33,0.00016554,2]
[382561953,1756668639140,-1073.42,0.00016554,2]
[382561955,1756668639150,-480.0,0.00016554,2]
[382561957,1756668639159,-590.1,0.00016554,2]
[382561959,1756668639169,-480.0,0.00016554,2]
[382561961,1756668639178,-1308.74,0.00016554,2]
[382561963,1756668639188,-480.0,0.00016554,2]
[382561965,1756668639197,-480.0,0.00016555,2]
[382561967,1756668639207,-480.0,0.00016555,2]
[382561969,1756668639217,-480.0,0.00016555,2]
[382561971,1756668639226,-480.0,0.00016555,2]
[382561973,1756668639236,-499.45047624,0.00016555,2]
[382561975,1756668639246,-480.0,0.00016555,2]
[382561977,1756668639255,-572.49,0.00016555,2]
[382561979,1756668639265,-480.0,0.00016555,2]
[382561981,1756668639274,-480.0,0.00016555,2]
[382561983,1756668639284,-480.0,0.00016555,2]
[382561985,1756668639294,-480.0,0.00016555,2]
[382561987,1756668639303,-483.79,0.00016555,2]
[382561988,1756668639314,-480.0,0.00016555,2]
[382561990,1756668639324,-480.0,0.00016555,2]
[382561992,1756668639334,-480.0,0.00016555,2]
[382561995,1756668639344,-226.93800032,0.00016555,2]
[382561997,1756668639358,-253.06199968,0.00016555,2]
[382561999,1756668639367,-480.0,0.00016555,2]
[382562001,1756668639376,-480.0,0.00016555,2]
[382562003,1756668639386,-642.75,0.00016555,2]
[382562005,1756668639396,-647.3,0.00016555,2]
[382562007,1756668639406,-480.0,0.00016555,2]
[382562009,1756668639415,-480.0,0.00016555,2]
[382562011,1756668639424,-480.0,0.00016555,2]
[382562013,1756668639434,-480.0,0.00016555,2]
[382562015,1756668639443,-480.0,0.00016555,2]
[382562017,1756668639453,-480.0,0.00016555,2]
[382562019,1756668639462,-480.0,0.00016555,2]
[382562020,1756668639472,-480.0,0.00016555,2]
[382562021,1756668639481,-480.0,0.00016555,2]
[382562023,1756668639490,-480.0,0.00016555,2]
[382562025,1756668639499,-480.0,0.00016555,2]
[382562027,1756668639508,-480.0,0.00016555,2]
[382562049,1756668639718,-827.47,0.00016555,2]
[382562051,1756668639728,-480.0,0.00016555,2]
[382562053,1756668639738,-480.0,0.00016555,2]
[382562055,1756668639747,-480.0,0.00016555,2]
[382562057,1756668639757,-480.0,0.00016555,2]
[382562059,1756668639766,-480.0,0.00016555,2]
[382562061,1756668639776,-480.0,0.00016555,2]
[382562063,1756668639786,-480.0,0.00016555,2]
[382562065,1756668639796,-480.0,0.00016555,2]
[382562067,1756668639805,-335.03468813,0.00016555,2]
[382562069,1756668639815,-480.0,0.00016555,2]
[382562071,1756668639824,-480.0,0.00016555,2]
[382562073,1756668639834,-480.0,0.00016555,2]
[382562075,1756668639843,-480.0,0.00016555,2]
[382562077,1756668639852,-480.0,0.00016555,2]
[382562079,1756668639861,-1148.91,0.00016555,2]
[382562081,1756668639871,-480.0,0.00016555,2]
[382562082,1756668639881,-480.0,0.00016555,2]
[382562084,1756668639890,-3731.05,0.00016555,2]
[382562086,1756668639899,-480.0,0.00016555,2]
[382562088,1756668639913,-480.0,0.00016555,2]
[382562090,1756668639922,-985.45,0.00016555,2]
[382562092,1756668639932,-1449.19,0.00016555,2]
[382562094,1756668639942,-480.0,0.00016555,2]
[382562096,1756668639953,-480.0,0.00016555,2]
[382562098,1756668639962,-480.0,0.00016555,2]
[382562100,1756668639972,-3406.63963069,0.00016555,2]
[382562492,1756668643815,-124.76718594,0.00016551,2]
[382562495,1756668643837,-271.47433126,0.00016551,2]
[382562497,1756668643846,-62.62237203,0.00016555,2]
[382562775,1756668646672,-982.43,0.0001655,2]
[382562777,1756668646682,-49.193944,0.00016555,2]
[382562985,1756668716948,491.78611307,0.00016454,2]
[382562988,1756668726417,1029.863942,0.00013699,2]
[382563037,1756668773371,10000.01,0.00015552,2]
[382563038,1756668773392,10000.01,0.00015552,2]
[382563039,1756668773414,1920.8870284,0.00015552,2]
[382563041,1756668779699,1737.0,0.00016436,2]
[382563043,1756668785040,1737.0,0.00016491,2]
[382563045,1756668789396,1737.0,0.00016482,2]
[382563047,1756668795089,1737.0,0.00016483,2]
[382563048,1756668799446,1131.1229716,0.00016407,2]
[382563049,1756668799469,605.8770284,0.00016407,2]
[382563050,1756668803822,1737.0,0.00016262,2]
[382563051,1756668808775,500.0,0.000165,2]
[382563052,1756668809909,1737.0,0.0001641,2]
[382563053,1756668813395,500.0,0.000165,2]
[382563054,1756668817983,500.0,0.000165,2]
[382563056,1756668879149,1225.94615,0.00015549,2]
[382563057,1756668886699,379.02976472,0.00016315,2]
[382563059,1756668898582,624.19291404,0.00016451,2]
[382563060,1756668979601,430.31284891,0.00016449,2]
[382563062,1756669079223,279.33582606,0.0001605,2]
[382563078,1756669240986,715.99071884,0.00016451,2]
[382563079,1756669245479,376.52374277,0.00016447,2]
[382563083,1756669310719,182.4551426,0.0001567,2]
[382563094,1756669511026,206.34586366,0.00016445,2]
[382563095,1756669511048,123.11241129,0.00016445,2]
[382563096,1756669581887,572.79257508,0.00016447,2]
[382563097,1756669646124,-572.79257506,0.00016518,2]
[382563098,1756669646147,-603.56,0.00016539,3]
[382563099,1756669646169,-402.35,0.0001654,3]
[382563100,1756669646399,-201.17,0.0001654,3]
[382563101,1756669646422,-1200.0,0.00016542,2]
[382563102,1756669646444,-300.0,0.00016543,2]
[382563103,1756669646469,-300.0,0.00016543,2]
[382563104,1756669646491,-1200.0,0.00016543,2]
[382563105,1756669646511,-300.0,0.00016543,2]
[382563106,1756669646532,-50000.0,0.00016544,2]
[382563107,1756669646553,-214.17489199,0.00016544,2]
[382563108,1756669646574,-203.52289618,0.00016544,2]
[382563109,1756669646598,-500.0,0.00016544,2]
[382563110,1756669646620,-455.17947771,0.00016544,2]
[382563111,1756669646643,-350.57094749,0.00016544,2]
[382563112,1756669646669,-480.0,0.00016544,2]
[382563113,1756669646879,-899.81,0.00016544,2]
[382563114,1756669646905,-480.0,0.00016544,2]
[382563115,1756669646925,-480.0,0.00016544,2]
[382563116,1756669646945,-7.89368144,0.00016544,2]
[382563117,1756669772643,288.27599059,0.00016445,2]
[382563118,1756669824147,978.370744,0.00013699,2]
[382563161,1756669831957,-1769.90079662,0.00016543,2]
[382563163,1756669831967,-300.0,0.00016543,2]
[382563165,1756669831979,-1200.0,0.00016543,2]
[382563167,1756669831989,-472.10631856,0.00016544,2]
[382563169,1756669831999,-480.0,0.00016544,2]
[382563188,1756669832193,-480.0,0.00016544,2]
[382563190,1756669832203,-480.0,0.00016544,2]
[382563192,1756669832212,-480.0,0.00016544,2]
[382563194,1756669832222,-480.0,0.00016544,2]
[382563196,1756669832230,-601.26,0.00016544,2]
[382563198,1756669832238,-480.0,0.00016544,2]
[382563200,1756669832246,-480.0,0.00016544,2]
[382563201,1756669832255,-480.0,0.00016544,2]
[382563202,1756669832263,-480.0,0.00016544,2]
[382563203,1756669832272,-480.0,0.00016544,2]
[382563204,1756669832279,-491.38,0.00016544,2]
[382563205,1756669832288,-480.0,0.00016544,2]
[382563206,1756669832297,-480.0,0.00016544,2]
[382563207,1756669832305,-507.77,0.00016544,2]
[382563208,1756669832315,-556.60691675,0.00016544,2]
[382563209,1756669832326,-480.0,0.00016544,2]
[382563210,1756669832335,-698.0,0.00016544,2]
[382563211,1756669832345,-648.97,0.00016544,2]
[382563212,1756669832355,-480.0,0.00016544,2]
[382563213,1756669832364,-480.0,0.00016544,2]
[382563214,1756669832373,-677.41,0.00016544,2]
[382563215,1756669832383,-480.0,0.00016544,2]
[382563216,1756669832392,-480.0,0.00016544,2]
[382563217,1756669832402,-480.0,0.00016544,2]
[382563218,1756669832412,-932.18,0.00016544,2]
[382563219,1756669832422,-1147.91,0.00016544,2]
[382563220,1756669832431,-680.71,0.00016544,2]
[382563221,1756669832444,-480.0,0.00016544,2]
[382563222,1756669832454,-480.0,0.00016545,2]
[382563223,1756669832463,-480.06,0.00016545,2]
[382563224,1756669832472,-480.0,0.00016545,2]
[382563225,1756669832483,-1376.77,0.00016545,2]
[382563226,1756669832492,-480.0,0.00016545,2]
[382563227,1756669832502,-778.2,0.00016545,2]
[382563228,1756669832512,-968.58,0.00016545,2]
[382563229,1756669832525,-1244.5,0.00016545,2]
[382563230,1756669832535,-1029.75,0.00016545,2]
[382563231,1756669832545,-480.21,0.00016545,2]
[382563232,1756669832554,-759.23,0.00016545,2]
[382563233,1756669832564,-480.0,0.00016545,2]
[382563234,1756669832573,-492.5,0.00016545,2]
[382563235,1756669832583,-480.0,0.00016545,2]
[382563236,1756669832592,-1252.97,0.00016545,2]
[382563237,1756669832602,-480.0,0.00016545,2]
[382563238,1756669832611,-574.31,0.00016545,2]
[382563239,1756669832621,-715.02,0.00016545,2]
[382563240,1756669832631,-480.0,0.00016545,2]
[382563241,1756669832640,-480.0,0.00016545,2]
[382563242,1756669832649,-627.83,0.00016545,2]
[382563243,1756669832659,-941.5,0.00016545,2]
[382563244,1756669832668,-480.0,0.00016545,2]
[382563245,1756669832677,-480.0,0.00016545,2]
[382563246,1756669832687,-480.0,0.00016545,2]
[382563247,1756669832696,-575.54,0.00016545,2]
[382563248,1756669832705,-680.13,0.00016545,2]
[382563249,1756669832715,-480.0,0.00016545,2]
[382563250,1756669832725,-2015.09,0.00016545,2]
[382563251,1756669832734,-480.0,0.00016545,2]
[382563252,1756669832743,-900.15,0.00016545,2]
[382563253,1756669832753,-486.61,0.00016545,2]
[382563254,1756669832763,-480.0,0.00016545,2]
[382563255,1756669832773,-507.19,0.00016545,2]
[382563256,1756669832783,-923.66,0.00016545,2]
[382563257,1756669832792,-480.0,0.00016545,2]
[382563258,1756669832802,-771.21,0.00016545,2]
[382563259,1756669832812,-480.0,0.00016545,2]
[382563260,1756669832822,-480.0,0.00016545,2]
[382563261,1756669832832,-480.0,0.00016545,2]
[382563262,1756669832842,-480.0,0.00016545,2]
[382563263,1756669832852,-1172.96,0.00016545,2]
[382563264,1756669832862,-480.0,0.00016545,2]
[382563265,1756669832872,-1818.36,0.00016545,2]
[382563266,1756669832882,-480.0,0.00016545,2]
[382563267,1756669832892,-165.11778629,0.00016545,2]
[382563268,1756669832905,-368.39024123,0.00016545,2]
[382563269,1756669832923,-291.83197248,0.00016545,2]
[382563270,1756669832934,-1098.96,0.00016545,2]
[382563271,1756669832947,-480.0,0.00016545,2]
[382563272,1756669832956,-161.37172853,0.00016545,2]
[382563277,1756669837783,-480.0,0.00016544,2]
[382563279,1756669837793,-480.0,0.00016544,2]
[382563281,1756669837803,-1501.38827147,0.00016545,2]
[382563283,1756669837812,-893.2,0.00016545,2]
[382563285,1756669837822,-480.0,0.00016545,2]
[382563287,1756669837831,-480.0,0.00016545,2]
[382563289,1756669837841,-734.71,0.00016545,2]
[382563291,1756669837850,-480.0,0.00016545,2]
[382563293,1756669837860,-885.64,0.00016545,2]
[382563295,1756669837870,-480.0,0.00016545,2]
[382563297,1756669837879,-580.49,0.00016545,2]
[382563299,1756669837888,-701.2,0.00016545,2]
[382563301,1756669837898,-719.28,0.00016545,2]
[382563303,1756669837907,-480.0,0.00016545,2]
[382563305,1756669837916,-480.0,0.00016545,2]
[382563307,1756669837926,-480.0,0.00016545,2]
[382563309,1756669837935,-480.0,0.00016545,2]
[382563315,1756669837988,-868.95,0.00016545,2]
[382563317,1756669837998,-480.0,0.00016545,2]
[382563319,1756669838008,-569.84,0.00016545,2]
[382563321,1756669838017,-943.06,0.00016545,2]
[382563323,1756669838027,-480.0,0.00016545,2]
[382563325,1756669838036,-480.0,0.00016545,2]
[382563327,1756669838045,-480.0,0.00016545,2]
[382563329,1756669838054,-1036.91,0.00016545,2]
[382563331,1756669838064,-518.62,0.00016545,2]
[382563333,1756669838073,-540.15,0.00016545,2]
[382563335,1756669838083,-259.5001711,0.00016545,2]
[382563337,1756669838092,-480.0,0.00016545,2]
[382563339,1756669838101,-888.01,0.00016545,2]
[382563341,1756669838111,-480.0,0.00016545,2]
[382563343,1756669838120,-933.89,0.00016546,2]
[382563345,1756669838131,-3652.21,0.00016546,2]
[382563347,1756669838140,-677.93,0.00016546,2]
[382563349,1756669838149,-480.0,0.00016546,2]
[382563352,1756669838161,-480.0,0.00016546,2]
[382563353,1756669838170,-829.5,0.00016546,2]
[382563356,1756669838180,-5819.81,0.00016546,2]
[382563357,1756669838189,-1154.74,0.00016546,2]
[382563359,1756669838199,-4827.78,0.00016546,2]
[382563361,1756669838209,-2417.7,0.00016546,2]
[382563364,1756669838218,-2637.23,0.00016546,2]
[382563366,1756669838229,-480.0,0.00016546,2]
[382563367,1756669838245,-492.93,0.00016546,2]
[382563369,1756669838255,-2881.93,0.00016546,2]
[382563371,1756669838264,-1051.6,0.00016546,2]
[382563373,1756669838273,-1191.66,0.00016546,2]
[382563375,1756669838284,-480.0,0.00016547,2]
[382563377,1756669838295,-480.0,0.00016547,2]
[382563380,1756669838305,-480.0,0.00016547,2]
[382563381,1756669838315,-480.0,0.00016547,2]
[382563383,1756669838328,-480.0,0.00016547,2]
[382563386,1756669838339,-403.69838574,0.00016547,2]
[382563388,1756669838349,-480.0,0.00016547,2]
[382563390,1756669838358,-792.99,0.00016547,2]
[382563391,1756669838367,-480.0,0.00016547,2]
[382563393,1756669838377,-480.0,0.00016547,2]
[382563395,1756669838386,-480.0,0.00016547,2]
[382563398,1756669838395,-480.0,0.00016547,2]
[382563400,1756669838405,-480.0,0.00016547,2]
[382563402,1756669838414,-480.0,0.00016547,2]
[382563404,1756669838424,-480.0,0.00016547,2]
[382563405,1756669838433,-480.0,0.00016547,2]
[382563407,1756669838446,-480.0,0.00016547,2]
[382563409,1756669838456,-480.0,0.00016547,2]
[382563411,1756669838466,-480.0,0.00016547,2]
[382563413,1756669838475,-480.0,0.00016547,2]
[382563416,1756669838487,-657.06,0.00016547,2]
[382563418,1756669838497,-480.0,0.00016547,2]
[382563420,1756669838506,-480.0,0.00016547,2]
[382563422,1756669838518,-480.0,0.00016547,2]
[382563424,1756669838530,-480.0,0.00016547,2]
[382563426,1756669838539,-1101.04,0.00016547,2]
[382563428,1756669838549,-480.0,0.00016547,2]
[382563430,1756669838558,-210.59940042,0.00016547,2]
[382563431,1756669838568,-480.0,0.00016547,2]
[382563433,1756669838577,-891.77,0.00016547,2]
[382563435,1756669838586,-480.0,0.00016547,2]
[382563437,1756669838596,-480.0,0.00016547,2]
[382563439,1756669838606,-753.57,0.00016547,2]
[382563441,1756669838615,-538.01,0.00016547,2]
[382563443,1756669838624,-480.0,0.00016547,2]
[382563445,1756669838633,-480.0,0.00016547,2]
[382563447,1756669838642,-480.0,0.00016547,2]
[382563449,1756669838652,-480.0,0.00016547,2]
[382563451,1756669838661,-944.39,0.00016547,2]
[382563453,1756669838670,-619.79,0.00016547,2]
[382563455,1756669838680,-480.0,0.00016547,2]
[382563457,1756669838690,-480.0,0.00016547,2]
[382563459,1756669838702,-483.12,0.00016547,2]
[382563461,1756669838712,-480.0,0.00016547,2]
[382563463,1756669838721,-480.0,0.00016547,2]
[382563465,1756669838731,-1329.5,0.00016547,2]
[382563467,1756669838739,-480.0,0.00016547,2]
[382563469,1756669838749,-479.83997074,0.00016547,2]
[382563471,1756669838758,-492.68,0.00016547,2]
[382563473,1756669838768,-1187.02,0.00016547,2]
[382563475,1756669838777,-480.0,0.00016547,2]
[382563477,1756669838787,-480.0,0.00016547,2]
[382563479,1756669838796,-480.0,0.00016547,2]
[382563481,1756669838806,-480.0,0.00016547,2]
[382563483,1756669838815,-480.0,0.00016547,2]
[382563485,1756669838825,-480.0,0.00016547,2]
[382563487,1756669838835,-480.0,0.00016547,2]
[382563489,1756669838845,-480.0,0.00016547,2]
[382563491,1756669838854,-653.13,0.00016547,2]
[382563493,1756669838863,-1087.32,0.00016547,2]
[382563495,1756669838873,-888.67,0.00016547,2]
[382563497,1756669838883,-480.0,0.00016547,2]
[382563499,1756669838892,-480.0,0.00016547,2]
[382563501,1756669838903,-480.0,0.00016547,2]
[382563503,1756669838912,-480.0,0.00016547,2]
[382563505,1756669838921,-480.0,0.00016547,2]
[382563507,1756669838931,-1025.52,0.00016547,2]
[382563509,1756669838941,-480.0,0.00016547,2]
[382563511,1756669838950,-480.0,0.00016547,2]
[382563513,1756669838960,-480.0,0.00016547,2]
[382563515,1756669838970,-1288.69,0.00016547,2]
[382563517,1756669838981,-480.0,0.00016547,2]
[382563519,1756669838990,-480.0,0.00016547,2]
[382563521,1756669838999,-607.62937422,0.00016547,2]
[382563523,1756669839008,-480.0,0.00016547,2]
[382563525,1756669839018,-1239.25,0.00016547,2]
[382563527,1756669839027,-578.34,0.00016547,2]
[382563529,1756669839036,-614.53,0.00016547,2]
[382563531,1756669839045,-480.0,0.00016547,2]
[382563533,1756669839054,-480.0,0.00016547,2]
[382563535,1756669839063,-480.0,0.00016547,2]
[382563537,1756669839072,-509.76,0.00016547,2]
[382563539,1756669839082,-498.07,0.00016547,2]
[382563541,1756669839090,-480.0,0.00016547,2]
[382563543,1756669839100,-480.0,0.00016547,2]
[382563545,1756669839109,-1113.14,0.00016547,2]
[382563547,1756669839119,-480.0,0.00016547,2]
[382563549,1756669839128,-480.0,0.00016547,2]
[382563551,1756669839137,-480.0,0.00016547,2]
[382563553,1756669839147,-580.15751368,0.00016547,2]
[382563555,1756669839156,-480.0,0.00016547,2]
[382563557,1756669839166,-936.37,0.00016547,2]
[382563559,1756669839177,-946.96,0.00016547,2]
[382563561,1756669839188,-480.0,0.00016547,2]
[382563563,1756669839198,-480.0,0.00016547,2]
[382563565,1756669839207,-480.0,0.00016547,2]
[382563567,1756669839216,-991.95,0.00016547,2]
[382563569,1756669839225,-480.0,0.00016547,2]
[382563571,1756669839240,-480.0,0.00016547,2]
[382563573,1756669839251,-480.0,0.00016547,2]
[382563575,1756669839259,-480.0,0.00016547,2]
[382563577,1756669839269,-1109.48,0.00016547,2]
[382563579,1756669839278,-967.95,0.00016547,2]
[382563581,1756669839287,-882.2,0.00016547,2]
[382563583,1756669839297,-480.0,0.00016547,2]
[382563585,1756669839306,-1149.83,0.00016547,2]
[382563587,1756669839315,-480.0,0.00016547,2]
[382563589,1756669839325,-710.0,0.00016547,2]
[382563591,1756669839334,-578.93,0.00016547,2]
[382563593,1756669839343,-269.48133979,0.00016547,2]
[382563595,1756669839353,-480.0,0.00016547,2]
[382563597,1756669839363,-480.0,0.00016547,2]
[382563599,1756669839373,-480.0,0.00016547,2]
[382563601,1756669839382,-530.67,0.00016547,2]
[382563603,1756669839391,-480.0,0.00016547,2]
[382563605,1756669839400,-480.0,0.00016547,2]
[382563607,1756669839410,-480.0,0.00016547,2]
[382563609,1756669839419,-551.1974654,0.00016547,2]
[382563611,1756669839429,-480.0,0.00016547,2]
[382563613,1756669839438,-480.0,0.00016547,2]
[382563615,1756669839455,-480.0,0.00016547,2]
[382563617,1756669839465,-480.0,0.00016547,2]
[382563619,1756669839475,-681.34,0.00016547,2]
[382563621,1756669839492,-480.0,0.00016547,2]
[382563623,1756669839501,-1148.59,0.00016547,2]
[382563625,1756669839510,-480.0,0.00016547,2]
[382563627,1756669839519,-500.0,0.00016547,2]
[382563629,1756669839531,-480.0,0.00016547,2]
[382563631,1756669839541,-480.0,0.00016547,2]
[382563633,1756669839551,-480.0,0.00016547,2]
[382563635,1756669839560,-480.0,0.00016547,2]
[382563637,1756669839569,-532.81,0.00016547,2]
[382563639,1756669839578,-480.0,0.00016547,2]
[382563641,1756669839587,-480.0,0.00016547,2]
[382563643,1756669839596,-480.0,0.00016547,2]
[382563645,1756669839606,-506.96,0.00016547,2]
[382563647,1756669839614,-1028.7,0.00016547,2]
[382563649,1756669839623,-480.0,0.00016547,2]
[382563651,1756669839633,-480.0,0.00016547,2]
[382563653,1756669839642,-480.0,0.00016547,2]
[382563655,1756669839651,-410.49221079,0.00016547,2]
[382563657,1756669839660,-480.0,0.00016547,2]
[382563659,1756669839670,-480.0,0.00016547,2]
[382563661,1756669839679,-615.31,0.00016547,2]
[382563663,1756669839689,-480.0,0.00016547,2]
[382563665,1756669839698,-297.60048262,0.00016547,2]
[382563667,1756669839708,-480.0,0.00016547,2]
[382563669,1756669839717,-559.24,0.00016547,2]
[382563671,1756669839727,-731.62,0.00016547,2]
[382563673,1756669839739,-502.61,0.00016547,2]
[382563675,1756669839748,-717.39,0.00016547,2]
[382563677,1756669839758,-500.0,0.00016549,2]
[382563679,1756669839767,-500.0,0.00016549,2]
[382563681,1756669839776,-500.0,0.00016549,2]
[382563683,1756669839786,-150.0,0.00016549,2]
[382563685,1756669839795,-1852.10998731,0.0001655,2]
[382563687,1756669839805,-500.0,0.0001655,2]
[382563689,1756669839814,-480.0,0.00016551,2]
[382563691,1756669839823,-480.0,0.00016551,2]
[382563693,1756669839833,-480.0,0.00016551,2]
[382563695,1756669839842,-480.0,0.00016551,2]
[382563697,1756669839851,-480.0,0.00016551,2]
[382563699,1756669839861,-480.0,0.00016551,2]
[382563701,1756669839870,-500.0,0.00016551,2]
[382563703,1756669839879,-480.0,0.00016551,2]
[382563705,1756669839888,-841.98,0.00016551,2]
[382563707,1756669839897,-1245.7,0.00016551,2]
[382563709,1756669839906,-608.59,0.00016551,2]
[382563711,1756669839918,-480.0,0.00016551,2]
[382563713,1756669839928,-790.92,0.00016551,2]
[382563715,1756669839937,-636.71,0.00016551,2]
[382563717,1756669839947,-709.51,0.00016551,2]
[382563719,1756669839956,-480.0,0.00016551,2]
[382563721,1756669839966,-480.0,0.00016551,2]
[382563723,1756669839975,-480.0,0.00016551,2]
[382563725,1756669839988,-480.0,0.00016551,2]
[382563727,1756669839998,-935.27,0.00016551,2]
[382563729,1756669840008,-622.4,0.00016551,2]
[382563731,1756669840018,-551.34257114,0.00016551,2]
[382563733,1756669840028,-480.0,0.00016551,2]
[382563735,1756669840038,-965.92,0.00016551,2]
[382563737,1756669840047,-480.0,0.00016551,2]
[382563738,1756669840057,-480.0,0.00016551,2]
[382563739,1756669840067,-920.03,0.00016551,2]
[382563740,1756669840076,-1580.33,0.00016551,2]
[382563741,1756669840085,-480.0,0.00016551,2]
[382563742,1756669840095,-480.0,0.00016551,2]
[382563743,1756669840105,-345.62403069,0.00016551,2]
[382563744,1756669840114,-480.0,0.00016551,2]
[382563745,1756669840124,-653.65,0.00016551,2]
[382563746,1756669840134,-480.0,0.00016551,2]
[382563747,1756669840143,-480.0,0.00016551,2]
[382563748,1756669840153,-480.0,0.00016551,2]
[382563749,1756669840163,-480.0,0.00016551,2]
[382563750,1756669840173,-480.0,0.00016551,2]
[382563751,1756669840183,-480.0,0.00016551,2]
[382563752,1756669840192,-480.0,0.00016551,2]
[382563753,1756669840202,-578.02,0.00016551,2]
[382563754,1756669840211,-480.0,0.00016551,2]
[382563755,1756669840221,-480.0,0.00016551,2]
[382563756,1756669840232,-1000.0,0.00016551,2]
[382563757,1756669840242,-1000.0,0.00016551,2]